bitfinex/quotes_BTCUSD_20251212
["timestamp","ask_amount","ask_price","bid_price","bid_amount"]
[1765559527281,0.0002381,90440.0,90439.0,0.28210631]
[1765559527579,0.0002381,90440.0,90439.0,0.2403964]
[1765559527725,0.0002381,90440.0,90439.0,0.2865844]
[1765559528070,0.0002381,90440.0,90439.0,0.2433964]
[1765559528789,0.0002381,90440.0,90439.0,0.2257564]
[1765559529078,0.0002381,90440.0,90439.0,0.22114353]
[1765559529210,0.0161581,90440.0,90439.0,0.003]
[1765559529428,0.0402081,90440.0,90439.0,0.22414353]
[1765559529632,0.0402081,90440.0,90439.0,0.22614353]
[1765559529832,0.0402081,90440.0,90439.0,0.22114353]
[1765559530722,0.0002381,90440.0,90439.0,0.22114353]
[1765559530947,0.0002381,90440.0,90439.0,0.2227564]
[1765559531160,0.0002381,90440.0,90439.0,0.25251419]
[1765559531321,0.0002381,90440.0,90439.0,0.2227564]
[1765559531535,0.0002381,90440.0,90439.0,0.25251458]
[1765559531904,0.0002381,90440.0,90439.0,0.2227564]
[1765559532750,0.0002381,90440.0,90439.0,0.2659444]
[1765559533081,0.0002381,90440.0,90439.0,0.30560213]
[1765559533283,0.0002381,90440.0,90439.0,0.30660213]
[1765559533492,0.0002381,90440.0,90439.0,0.26441413]
[1765559533780,0.0002381,90440.0,90439.0,0.2423964]
[1765559534365,0.0002381,90440.0,90439.0,0.03176264]
[1765559534366,0.0402081,90440.0,90439.0,0.03176264]
[1765559534594,0.36341618,90440.0,90439.0,0.002]
[1765559534912,0.3309081,90440.0,90439.0,0.002]
[1765559535526,0.0002381,90440.0,90439.0,0.002]
[1765559535731,0.0002381,90440.0,90439.0,0.001]
[1765559536302,0.0002381,90440.0,90437.0,0.23220541]
[1765559537317,0.0002381,90440.0,90439.0,0.00261287]
[1765559537516,0.0002381,90440.0,90439.0,0.00161287]
[1765559537693,0.0002381,90440.0,90439.0,0.0844586]
[1765559537916,0.0002381,90440.0,90439.0,0.04480087]
[1765559538918,0.0002381,90440.0,90439.0,0.00161287]
[1765559539159,0.0002381,90440.0,90439.0,0.04480087]
[1765559539594,0.0002381,90440.0,90439.0,0.06344087]
[1765559539958,0.0002381,90440.0,90439.0,0.06544087]
[1765559540382,0.0002381,90440.0,90439.0,0.06844087]
[1765559540587,0.0002381,90440.0,90439.0,0.02525287]
[1765559540787,0.0002381,90440.0,90439.0,0.01925287]
[1765559541327,0.0002381,90440.0,90439.0,0.06444087]
[1765559541603,0.0002381,90440.0,90439.0,0.06644087]
[1765559541760,0.0002381,90440.0,90439.0,0.2443964]
[1765559541990,0.0002381,90440.0,90439.0,0.2267564]
[1765559542201,0.0002381,90440.0,90439.0,0.25451076]
[1765559542397,0.0002381,90440.0,90439.0,0.2247564]
[1765559542598,0.0002381,90440.0,90439.0,0.2709444]
[1765559542840,0.0002381,90440.0,90439.0,0.2227564]
[1765559543191,0.0002381,90440.0,90439.0,0.2689444]
[1765559543631,0.0002381,90440.0,90439.0,0.2699444]
[1765559543813,0.0002381,90440.0,90439.0,0.2669444]
[1765559544009,0.0002381,90440.0,90439.0,0.2679444]
[1765559544209,0.0002381,90440.0,90439.0,0.2699444]
[1765559544550,0.0002381,90440.0,90439.0,0.2679444]
[1765559544912,0.0002381,90440.0,90439.0,0.2699444]
[1765559545517,0.0002381,90440.0,90439.0,0.2679444]
[1765559545947,0.0002381,90440.0,90439.0,0.2709444]
[1765559546172,0.0002381,90440.0,90439.0,0.2659444]
[1765559546415,0.0002381,90440.0,90439.0,0.2689444]
[1765559546649,0.0002381,90440.0,90439.0,0.2719444]
[1765559546979,0.0002381,90440.0,90439.0,0.2689444]
[1765559547195,0.0002381,90440.0,90439.0,0.2719444]
[1765559548489,0.0002381,90440.0,90439.0,0.2287564]
[1765559549095,0.0002381,90440.0,90439.0,0.2257564]
[1765559549298,0.0002381,90440.0,90439.0,0.2227564]
[1765559549514,0.0407981,90440.0,90439.0,0.005]
[1765559549926,0.45641241,90440.0,90439.0,0.002]
[1765559550156,0.22118747,90422.0,90420.0,0.03969919]
[1765559550455,0.02719,90420.0,90418.0,0.22119375]
[1765559550619,0.03605,90430.0,90428.0,0.01105852]
[1765559550804,0.01585,90429.0,90428.0,0.01105852]
[1765559551010,0.04056,90429.0,90428.0,0.01105852]
[1765559551416,0.01134,90435.0,90434.0,0.01105778]
[1765559551625,0.01134,90435.0,90426.0,0.22117295]
[1765559551626,0.05896499,90429.0,90427.0,0.22117287]
[1765559551829,0.2907,90433.0,90432.0,0.22116065]
[1765559552058,0.01134,90435.0,90432.0,0.23221868]
[1765559552259,0.0022381,90440.0,90438.0,0.22114495]
[1765559552430,0.0022381,90440.0,90437.0,0.23220552]
[1765559552632,0.01134,90439.0,90437.0,0.23220552]
[1765559553195,0.04056,90438.0,90434.0,0.01105778]
[1765559553442,0.01105839,90429.0,90424.0,0.01105901]
[1765559553643,0.01585,90434.0,90427.0,0.01105864]
[1765559553857,0.03576742,90437.0,90431.0,0.01105815]
[1765559554064,0.01105754,90436.0,90431.0,0.22116309]
[1765559554200,0.02471,90436.0,90434.0,0.01105778]
[1765559554644,0.02471,90436.0,90435.0,0.22115331]
[1765559555211,0.01134,90439.0,90438.0,0.22114597]
[1765559555618,0.03605,90439.0,90437.0,0.22114842]
[1765559555847,0.0002381,90440.0,90437.0,0.22114842]
[1765559555848,0.0002381,90440.0,90437.0,0.23220584]
[1765559556521,0.0002381,90440.0,90439.0,0.31596279]
[1765559556968,0.0002381,90440.0,90439.0,0.33360279]
[1765559557622,0.0002381,90440.0,90439.0,0.2227564]
[1765559558046,0.0002381,90440.0,90439.0,0.2403964]
[1765559559149,1e-08,90440.0,90439.0,0.2403964]
[1765559559344,0.02471,90487.0,90486.0,0.01105143]
[1765559559557,0.02471,90487.0,90483.0,0.01105179]
[1765559559731,0.02471,90487.0,90486.0,0.22102866]
[1765559560186,0.04056,90487.0,90484.0,0.01105167]
[1765559560396,0.04056,90487.0,90473.0,0.01105302]
[1765559560397,0.01585,90485.0,90473.0,0.01105302]
[1765559560611,0.01585,90485.0,90445.0,0.44225763]
[1765559560612,0.01585,90479.0,90474.0,0.01105289]
[1765559560867,0.02942017,90480.0,90476.0,0.01105265]
[1765559561069,0.02942017,90480.0,90477.0,0.01105253]
[1765559561221,0.01836801,90480.0,90477.0,0.01105253]
[1765559561422,0.01585,90475.0,90474.0,0.00011652]
[1765559561625,0.27998355,90475.0,90474.0,0.00011652]
[1765559561808,0.26161554,90475.0,90474.0,0.00011652]
[1765559562272,0.04056,90475.0,90474.0,0.00011652]
[1765559562490,0.04056,90475.0,90468.0,0.01105363]
[1765559562491,0.22113864,90441.0,90434.0,0.0595029]
[1765559562662,0.22113864,90441.0,90426.0,0.01641384]
[1765559562663,0.01105815,90431.0,90426.0,0.01641384]
[1765559562894,0.22115576,90434.0,90422.0,0.0396686]
[1765559562895,0.01105888,90425.0,90422.0,0.01105925]
[1765559563069,0.0110595,90420.0,90414.0,0.0396686]
[1765559563269,0.01105998,90416.0,90411.0,0.0507292]
[1765559563476,1.07494409,90424.0,90411.0,0.0507292]
[1765559563477,0.01134,90427.0,90422.0,0.01105925]
[1765559563675,0.02239864,90427.0,90421.0,0.01105937]
[1765559563903,0.01134,90427.0,90422.0,0.01105925]
[1765559564106,0.01134,90427.0,90424.0,0.01105901]
[1765559564306,0.02471,90426.0,90425.0,0.22117777]
[1765559564625,0.01134,90427.0,90424.0,0.01105901]
[1765559565345,0.01134,90427.0,90425.0,0.22117777]
[1765559565785,0.002,90426.0,90425.0,0.22117777]
[1765559566015,0.01134,90427.0,90425.0,0.22117777]
[1765559566016,0.01105729,90438.0,90432.0,0.01105803]
[1765559566217,0.2907,90434.0,90428.0,0.01105852]
[1765559566394,0.01105803,90432.0,90428.0,0.01105852]
[1765559566594,0.00011667,90441.0,90431.0,0.01267102]
[1765559566794,0.00011667,90441.0,90440.0,0.22275395]
[1765559567203,0.00011667,90441.0,90440.0,0.24039395]
[1765559568562,0.00011667,90441.0,90440.0,0.24239395]
[1765559569694,0.00011667,90441.0,90440.0,0.62630034]
[1765559570111,0.01134,90477.0,90476.0,0.22105309]
[1765559570318,0.0114563,90477.0,90476.0,0.22105309]
[1765559570546,0.0001163,90477.0,90476.0,0.22105309]
[1765559571311,0.0011163,90477.0,90476.0,0.22105309]
[1765559571724,0.00221705,90477.0,90476.0,0.22105309]
[1765559572771,0.00421705,90477.0,90476.0,0.22105309]
[1765559572948,0.00221705,90477.0,90476.0,0.22105309]
[1765559573172,0.00121705,90477.0,90476.0,0.22105309]
[1765559573760,0.01315705,90477.0,90475.0,0.22105554]
[1765559573959,0.0120563,90477.0,90475.0,0.22105554]
[1765559574167,0.0395,90476.0,90471.0,0.01105326]
[1765559574520,0.01105326,90471.0,90464.0,0.23213653]
[1765559574729,0.0161,90466.0,90464.0,0.01105412]
[1765559574884,0.01580702,90465.0,90464.0,0.01105412]
[1765559575078,0.03920702,90465.0,90460.0,0.22108978]
[1765559575275,0.0161,90464.0,90462.0,0.22108496]
[1765559575490,0.0395,90464.0,90462.0,0.22108496]
[1765559575659,0.0161,90464.0,90462.0,0.22108496]
[1765559575859,0.01836801,90471.0,90469.0,0.01105351]
[1765559576060,0.01836801,90471.0,90470.0,0.22106775]
[1765559576344,0.2907,90475.0,90473.0,0.22106025]
[1765559576858,0.0120563,90477.0,90475.0,0.22105554]
[1765559577063,0.0120563,90477.0,90474.0,0.01105289]
[1765559577268,0.01105326,90471.0,90463.0,0.01105424]
[1765559577516,0.01105387,90466.0,90463.0,0.01105424]
[1765559577672,0.0171,90464.0,90458.0,0.23215193]
[1765559577889,0.0161,90463.0,90461.0,0.22108958]
[1765559578085,0.0234,90467.0,90466.0,0.22107753]
[1765559578517,0.01105314,90472.0,90468.0,0.01105363]
[1765559578719,0.01105326,90471.0,90467.0,0.01105375]
[1765559578921,0.02942127,90471.0,90468.0,0.01105363]
[1765559579136,0.0234,90470.0,90468.0,0.01105363]
[1765559579382,0.0161,90469.0,90468.0,0.01105363]
[1765559579592,0.02715351,90469.0,90466.0,0.01105387]
[1765559579804,0.0161,90467.0,90461.0,0.01105448]
[1765559580011,0.0161,90460.0,90457.0,0.01105497]
[1765559580228,0.01105558,90452.0,90449.0,0.01105595]
[1765559580437,0.02804,90450.0,90446.0,0.01105632]
[1765559580644,0.02804,90450.0,90449.0,0.22111908]
[1765559580851,0.26021327,90450.0,90446.0,0.01105632]
[1765559581061,0.0110568,90442.0,90435.0,0.2322099]
[1765559581269,0.0161,90436.0,90432.0,0.22116001]
[1765559581478,0.02715754,90436.0,90429.0,0.01105839]
[1765559581697,0.01105876,90426.0,90423.0,0.01105913]
[1765559581902,0.0161,90430.0,90427.0,0.23223111]
[1765559582104,0.22116309,90431.0,90427.0,0.23223111]
[1765559582296,0.01105815,90431.0,90427.0,0.23234778]
[1765559582576,0.0161,90428.0,90427.0,0.23234778]
[1765559583144,0.01105766,90435.0,90427.0,0.23234778]
[1765559583346,0.02299742,90437.0,90434.0,0.23221312]
[1765559583347,0.01194,90437.0,90434.0,0.23221312]
[1765559583611,0.34279668,90443.0,90438.0,0.01105729]
[1765559583845,0.2475,90448.0,90447.0,0.22112397]
[1765559584195,0.5777,90448.0,90447.0,0.22112397]
[1765559584395,0.5777,90448.0,90442.0,0.0110568]
[1765559584396,0.2907,90447.0,90442.0,0.0110568]
[1765559584573,0.02715632,90446.0,90442.0,0.0110568]
[1765559584789,0.0161,90446.0,90443.0,0.23219043]
[1765559584998,0.01105742,90437.0,90425.0,0.01105888]
[1765559585200,0.01105742,90437.0,90400.0,0.07922536]
[1765559585201,0.01105754,90436.0,90433.0,0.01105791]
[1765559585432,0.01105717,90439.0,90435.0,0.01105766]
[1765559585637,0.01105693,90441.0,90438.0,0.01105729]
[1765559586035,0.0161,90439.0,90437.0,0.01105742]
[1765559586392,0.0161,90438.0,90437.0,0.01105742]
[1765559586776,0.0161,90438.0,90437.0,0.23220584]
[1765559586985,0.0234,90440.0,90439.0,0.22114353]
[1765559587554,0.05055705,90440.0,90430.0,0.01105827]
[1765559587735,0.05055705,90440.0,90431.0,0.01105815]
[1765559587736,0.01105766,90435.0,90431.0,0.01105815]
[1765559588176,0.0234,90434.0,90431.0,0.23222036]
[1765559588405,0.002,90441.0,90438.0,0.01105729]
[1765559588537,0.002,90441.0,90440.0,0.22114108]
[1765559588924,0.002,90441.0,90438.0,0.23220324]
[1765559589324,0.002,90441.0,90440.0,0.22114108]
[1765559589832,0.2907,90444.0,90442.0,0.22113619]
[1765559590049,0.2907,90444.0,90441.0,0.01105693]
[1765559590267,0.0234,90443.0,90442.0,0.22113619]
[1765559591067,0.0395,90443.0,90441.0,0.01105693]
[1765559591518,0.002,90444.0,90443.0,0.22113375]
[1765559592554,0.00023808,90448.0,90447.0,0.22112397]
[1765559594483,0.00223808,90448.0,90447.0,0.22112397]
[1765559594857,0.00223808,90448.0,90445.0,0.23218298]
[1765559595062,0.00223808,90448.0,90447.0,0.22112397]
[1765559595906,0.00123808,90448.0,90447.0,0.22112397]
[1765559596059,0.00223808,90448.0,90447.0,0.22112397]
[1765559596272,0.00223808,90448.0,90447.0,0.22273684]
[1765559596491,0.00223808,90448.0,90447.0,0.26592484]
[1765559596693,0.00123808,90448.0,90447.0,0.22273684]
[1765559597297,0.00023808,90448.0,90447.0,0.24037684]
[1765559597624,0.00123808,90448.0,90447.0,0.22273684]
[1765559597977,0.00023808,90448.0,90447.0,0.22273684]
[1765559598179,0.00123808,90448.0,90447.0,0.22373684]
[1765559599181,0.00123808,90448.0,90447.0,0.26692484]
[1765559599332,0.00023808,90448.0,90447.0,0.26692484]
[1765559599755,0.00023808,90448.0,90447.0,0.22473684]
[1765559600784,0.00023808,90448.0,90447.0,0.26792484]
[1765559601008,0.00023808,90448.0,90447.0,0.22473684]
[1765559601484,0.00023808,90448.0,90447.0,0.22373684]
[1765559601627,0.00023808,90448.0,90447.0,0.26692484]
[1765559601836,0.00023808,90448.0,90447.0,0.22373684]
[1765559602075,0.00023808,90448.0,90447.0,0.26692484]
[1765559602289,0.00023808,90448.0,90447.0,0.22373684]
[1765559602479,0.00023808,90448.0,90447.0,0.22473684]
[1765559603057,0.00023808,90448.0,90447.0,0.22373684]
[1765559603262,0.00023808,90448.0,90447.0,0.22273684]
[1765559603605,0.00023808,90448.0,90447.0,0.22473684]
[1765559603829,0.00023808,90448.0,90447.0,0.22312397]
[1765559604016,0.2618096,90448.0,90447.0,0.002]
[1765559604169,0.04068808,90448.0,90447.0,0.002]
[1765559604827,0.04068808,90448.0,90447.0,0.001]
[1765559605407,0.04068808,90448.0,90444.0,0.01105656]
[1765559605408,0.04068808,90448.0,90445.0,0.01105644]
[1765559605616,0.02427,90447.0,90446.0,0.22112404]
[1765559606013,0.04045,90447.0,90446.0,0.22112404]
[1765559606247,0.01618,90447.0,90446.0,0.22112404]
[1765559606416,0.04045,90447.0,90445.0,0.01105644]
[1765559606610,0.01618,90446.0,90445.0,0.2321853]
[1765559606813,0.04045,90446.0,90445.0,0.2321853]
[1765559607536,0.01618,90446.0,90445.0,0.2321853]
[1765559607746,0.01718,90446.0,90445.0,0.2321853]
[1765559608507,0.04145,90446.0,90445.0,0.2321853]
[1765559608706,0.04245,90446.0,90445.0,0.2321853]
[1765559609417,0.04245,90446.0,90445.0,0.01105644]
[1765559609617,0.04245,90446.0,90445.0,0.2321853]
[1765559611254,0.002,90446.0,90445.0,0.2321853]
[1765559618245,0.01105717,90439.0,90435.0,0.01105766]
[1765559618617,0.01618,90428.0,90425.0,0.01105888]
[1765559619012,0.01618,90428.0,90426.0,0.22117468]
[1765559619612,0.02427,90433.0,90429.0,0.01105839]
[1765559619915,0.02427,90433.0,90431.0,0.22116309]
[1765559620552,0.01618,90432.0,90431.0,0.22116309]
[1765559621410,0.04045,90432.0,90431.0,0.22116309]
[1765559621762,0.01248,90437.0,90436.0,0.22115086]
[1765559622200,0.05293,90437.0,90436.0,0.22115086]
[1765559623384,0.05393,90437.0,90436.0,0.22115086]
[1765559623587,0.01105754,90436.0,90432.0,0.01105803]
[1765559623727,0.02427,90436.0,90433.0,0.01105791]
[1765559623920,0.01105766,90435.0,90431.0,0.01105815]
[1765559624133,0.01618,90432.0,90431.0,0.01105815]
[1765559624355,0.01618,90432.0,90430.0,0.01105827]
[1765559624556,0.04045,90431.0,90430.0,0.23222378]
[1765559624877,0.04045,90431.0,90430.0,0.23222381]
[1765559625077,0.001,90436.0,90433.0,0.23221575]
[1765559625317,0.01205754,90436.0,90433.0,0.01105791]
[1765559625517,0.01618,90434.0,90433.0,0.01105791]
[1765559625883,0.04045,90434.0,90433.0,0.01105791]
[1765559626694,0.04045,90434.0,90427.0,0.01117531]
[1765559626695,0.01105827,90430.0,90427.0,0.00011667]
[1765559626859,0.30688,90428.0,90427.0,0.00011667]
[1765559627057,0.34999499,90428.0,90427.0,0.00011667]
[1765559627363,0.37426499,90428.0,90427.0,0.00011667]
[1765559627712,0.2907,90428.0,90427.0,0.00011667]
[1765559627911,0.01105827,90430.0,90427.0,0.00011667]
[1765559628152,0.01618,90428.0,90427.0,0.00011667]
[1765559628479,0.08356499,90428.0,90427.0,0.00011667]
[1765559628676,0.08456499,90428.0,90427.0,0.00011667]
[1765559628919,0.08656499,90428.0,90427.0,0.00011667]
[1765559629283,0.08456499,90428.0,90427.0,0.00011667]
[1765559629707,0.08656499,90428.0,90427.0,0.00011667]
[1765559629967,0.08556499,90428.0,90427.0,0.00011667]
[1765559630241,0.09725076,90428.0,90427.0,0.00011667]
[1765559630647,0.09925076,90428.0,90427.0,0.00011667]
[1765559630856,0.08556499,90428.0,90427.0,0.00011667]
[1765559631481,0.08756499,90428.0,90427.0,0.00011667]
[1765559631882,0.30873542,90428.0,90427.0,0.00011667]
[1765559632256,0.26562043,90428.0,90427.0,0.00011667]
[1765559632668,0.37612805,90428.0,90427.0,0.00011667]
[1765559632869,0.01106219,90398.0,90388.0,0.09028877]
[1765559633072,0.01106219,90398.0,90374.0,0.043188]
[1765559633073,0.02303268,90394.0,90390.0,0.01106317]
[1765559633269,0.02303268,90394.0,90391.0,0.22126096]
[1765559633270,0.01197,90394.0,90391.0,0.22126096]
[1765559633435,0.02394,90393.0,90391.0,0.01106304]
[1765559633631,0.01585,90392.0,90391.0,0.23232365]
[1765559633889,0.01197,90394.0,90393.0,0.22125607]
[1765559634906,0.00011615,90398.0,90395.0,0.232313]
[1765559635106,0.00111615,90398.0,90396.0,0.22124658]
[1765559635601,0.01585,90397.0,90396.0,0.22124658]
[1765559636152,0.03979,90397.0,90396.0,0.22124658]
[1765559636498,0.03979,90397.0,90395.0,0.01106255]
[1765559636732,0.03979,90397.0,90393.0,0.0110628]
[1765559636733,0.03979,90396.0,90393.0,0.0110628]
[1765559636955,0.01585,90394.0,90393.0,0.0110628]
[1765559637374,0.02691268,90394.0,90391.0,0.01267591]
[1765559637573,0.01106341,90388.0,90385.0,0.01106378]
[1765559637752,0.01585,90386.0,90384.0,0.2212781]
[1765559637979,0.01585,90386.0,90383.0,0.01106402]
[1765559638312,0.01585,90386.0,90384.0,0.2212781]
[1765559638514,0.03979,90386.0,90384.0,0.2212781]
[1765559639559,0.01106231,90397.0,90389.0,0.01106329]
[1765559639760,0.02405615,90398.0,90395.0,0.01106255]
[1765559640207,0.01585,90390.0,90387.0,0.01106353]
[1765559640424,0.33571649,90397.0,90393.0,0.0110628]
[1765559640631,0.02394,90396.0,90393.0,0.0110628]
[1765559640989,0.01585,90394.0,90391.0,0.01106304]
[1765559641203,0.01585,90392.0,90391.0,0.23232176]
[1765559641393,0.00011615,90398.0,90395.0,0.23231146]
[1765559641571,0.04311499,90396.0,90395.0,0.23231146]
[1765559641802,0.01585,90396.0,90395.0,0.23231146]
[1765559641999,0.03979,90396.0,90392.0,0.22125851]
[1765559642210,0.0110639,90384.0,90370.0,0.043188]
[1765559642381,0.01106512,90374.0,90370.0,0.01267848]
[1765559642756,0.02782,90371.0,90370.0,0.22292525]
[1765559642958,0.01197,90383.0,90382.0,0.01106414]
[1765559643123,0.01197,90383.0,90382.0,0.23234713]
[1765559643330,0.05176,90383.0,90382.0,0.23234713]
[1765559643532,0.02782,90383.0,90382.0,0.23234713]
[1765559643735,0.03591,90390.0,90386.0,0.01106366]
[1765559644114,0.04411499,90396.0,90386.0,0.01106366]
[1765559644115,0.01197,90395.0,90393.0,0.22125607]
[1765559644239,0.001,90396.0,90395.0,0.22125117]
[1765559644852,0.00011615,90398.0,90397.0,0.22124628]
[1765559645050,0.00011615,90398.0,90395.0,0.01106255]
[1765559645320,0.01585,90396.0,90386.0,0.01106366]
[1765559645459,0.04242416,90398.0,90393.0,0.0110628]
[1765559645656,0.02405615,90398.0,90396.0,0.22124797]
[1765559646199,0.04311499,90394.0,90392.0,0.01106292]
[1765559646493,0.01585,90393.0,90392.0,0.23231937]
[1765559646697,0.03979,90393.0,90392.0,0.01106292]
[1765559646856,0.01585,90393.0,90392.0,0.01106292]
[1765559647199,0.03979,90393.0,90392.0,0.01106292]
[1765559649003,0.00011615,90398.0,90396.0,0.22124872]
[1765559649178,0.00011615,90398.0,90396.0,0.22286159]
[1765559651925,0.01585,90397.0,90396.0,0.22286159]
[1765559652192,0.03979,90397.0,90396.0,0.22286159]
[1765559652384,0.03979,90397.0,90396.0,0.22124872]
[1765559652529,0.00011615,90398.0,90396.0,0.22124872]
[1765559654522,0.00011615,90398.0,90396.0,0.22286159]
[1765559654727,0.00011615,90398.0,90397.0,0.043188]
[1765559654907,0.00011615,90398.0,90397.0,0.04480087]
[1765559656170,0.00011615,90398.0,90397.0,0.00161287]
[1765559656314,0.00011615,90398.0,90397.0,0.0076712]
[1765559657494,0.00011615,90398.0,90397.0,0.34048004]
[1765559657694,0.00011615,90398.0,90397.0,0.33850087]
[1765559658028,0.00011615,90398.0,90397.0,0.33550087]
[1765559658477,0.00011615,90398.0,90397.0,0.33850087]
[1765559659206,0.00011615,90398.0,90397.0,0.34150087]
[1765559659432,0.00011615,90398.0,90397.0,0.39151926]
[1765559659625,0.00011615,90398.0,90397.0,0.40915926]
[1765559660380,0.01214,90443.0,90441.0,0.22113864]
[1765559660575,0.02426,90449.0,90447.0,0.22112397]
[1765559660758,0.01197,90450.0,90447.0,0.22112397]
[1765559661174,0.01214,90454.0,90447.0,0.22112397]
[1765559661376,0.01836801,90453.0,90447.0,0.22112397]
[1765559662218,0.01214,90454.0,90447.0,0.22112397]
[1765559662428,0.00123808,90448.0,90447.0,0.22112397]
[1765559662904,0.00023808,90448.0,90447.0,0.22112397]
[1765559663347,0.00023808,90448.0,90447.0,0.22273684]
[1765559663706,0.00123808,90448.0,90447.0,0.22273684]
[1765559664376,0.00123808,90448.0,90447.0,0.22373684]
[1765559665027,0.00023808,90448.0,90447.0,0.22373684]
[1765559665566,0.00023808,90448.0,90447.0,0.22473684]
[1765559667322,0.00023808,90448.0,90447.0,0.002]
[1765559667323,0.2609796,90448.0,90447.0,0.002]
[1765559667527,0.6486405,90448.0,90447.0,0.002]
[1765559668326,0.59479459,90448.0,90447.0,0.001]
[1765559668737,0.01105717,90439.0,90435.0,0.01105766]
[1765559668910,0.01536,90436.0,90435.0,0.01105766]
[1765559669470,0.01536,90436.0,90435.0,0.23220984]
[1765559669875,0.01536,90436.0,90435.0,0.01105766]
[1765559670019,0.01536,90436.0,90435.0,0.23221097]
[1765559670535,0.01636,90436.0,90435.0,0.23221097]
[1765559671474,0.04062,90436.0,90435.0,0.23221097]
[1765559671887,0.04062,90436.0,90435.0,0.01105766]
[1765559672453,0.04062,90436.0,90429.0,0.22116599]
[1765559672454,0.01105815,90431.0,90425.0,0.01105888]
[1765559672682,0.01105815,90431.0,90427.0,0.22117222]
[1765559673005,0.01105791,90433.0,90429.0,0.01105839]
[1765559673220,0.02426,90435.0,90432.0,0.01105803]
[1765559673416,0.02426,90435.0,90433.0,0.2211578]
[1765559673824,0.01536,90434.0,90432.0,0.01105803]
[1765559674317,0.01536,90433.0,90432.0,0.23221644]
[1765559674573,0.01536,90433.0,90431.0,0.01105815]
[1765559674758,0.01105766,90435.0,90432.0,0.01105803]
[1765559675160,0.01536,90433.0,90432.0,0.01105803]
[1765559675562,0.03962,90433.0,90432.0,0.01105803]
[1765559677127,0.03531693,90441.0,90436.0,0.01105754]
[1765559677549,0.01536,90437.0,90436.0,0.2322084]
[1765559677961,0.22115273,90436.0,90432.0,0.01105803]
[1765559678180,0.01536,90433.0,90432.0,0.01105803]
[1765559678540,0.03962,90433.0,90432.0,0.01105803]
[1765559679194,0.03962,90433.0,90431.0,0.23221929]
[1765559679410,0.03962,90432.0,90431.0,0.23221929]
[1765559680370,0.01105913,90423.0,90415.0,0.01106011]
[1765559680538,0.01105913,90423.0,90419.0,0.01105962]
[1765559680539,0.01536,90421.0,90419.0,0.01105962]
[1765559680755,5.143e-05,90423.0,90422.0,0.2211851]
[1765559680756,0.02431143,90423.0,90422.0,0.2211851]
[1765559681520,5.143e-05,90423.0,90422.0,0.2211851]
[1765559681719,5.143e-05,90423.0,90422.0,0.22279797]
[1765559682142,0.00105143,90423.0,90422.0,0.22279797]
[1765559682552,5.143e-05,90423.0,90422.0,0.22279797]
[1765559682874,0.00105143,90423.0,90422.0,0.22279797]
[1765559683019,5.143e-05,90423.0,90422.0,0.22279797]
[1765559685373,5.143e-05,90423.0,90422.0,0.24043797]
[1765559688254,0.01541143,90423.0,90422.0,0.00161287]
[1765559688483,0.03967143,90423.0,90422.0,0.22279797]
[1765559689050,0.31502838,90423.0,90420.0,0.0110595]
[1765559689273,0.01536,90421.0,90417.0,0.2322572]
[1765559689475,0.01536,90420.0,90419.0,0.23225206]
[1765559694226,5.143e-05,90423.0,90419.0,0.23225206]
[1765559694227,5.143e-05,90423.0,90421.0,0.22118755]
[1765559696088,5.143e-05,90423.0,90422.0,0.00607354]
[1765559696306,5.143e-05,90423.0,90422.0,0.00161287]
[1765559696541,0.04030143,90423.0,90422.0,0.00161287]
[1765559696990,5.143e-05,90423.0,90422.0,0.00161287]
[1765559698548,5.143e-05,90423.0,90422.0,0.00768639]
[1765559698896,5.143e-05,90423.0,90422.0,0.02528639]
[1765559699120,5.143e-05,90423.0,90422.0,0.00161287]
[1765559699325,0.04030143,90423.0,90422.0,0.00161287]
[1765559700329,0.01105925,90422.0,90419.0,0.01105962]
[1765559700545,0.22119734,90417.0,90411.0,0.0110606]
[1765559700746,0.01106011,90415.0,90412.0,0.01106047]
[1765559700978,0.01106011,90415.0,90406.0,0.22122325]
[1765559700979,0.01106133,90405.0,90378.0,0.03323129]
[1765559701174,0.22121446,90410.0,90402.0,0.0110617]
[1765559701376,0.0116,90406.0,90404.0,0.23229029]
[1765559701555,5.143e-05,90423.0,90421.0,0.22118755]
[1765559701786,5.143e-05,90423.0,90421.0,0.22280042]
[1765559701982,5.143e-05,90423.0,90422.0,0.00161287]
[1765559702165,5.143e-05,90423.0,90422.0,0.04480087]
[1765559702366,0.04030143,90423.0,90422.0,0.01921287]
[1765559702670,0.04030143,90423.0,90420.0,0.0110595]
[1765559702914,5.143e-05,90423.0,90421.0,0.22118731]
[1765559703069,5.143e-05,90423.0,90422.0,0.00161287]
[1765559703269,5.143e-05,90423.0,90422.0,0.05075349]
[1765559703624,5.143e-05,90423.0,90422.0,0.09967421]
[1765559704173,5.143e-05,90423.0,90422.0,0.39037421]
[1765559704380,5.143e-05,90423.0,90422.0,0.38551926]
[1765559704966,1.43e-06,90423.0,90422.0,0.39151926]
[1765559705176,1.43e-06,90423.0,90422.0,0.38851926]
[1765559705506,1.43e-06,90423.0,90422.0,0.39251926]
[1765559706190,1.43e-06,90423.0,90422.0,0.38951926]
[1765559706499,1.43e-06,90423.0,90422.0,0.39451926]
[1765559706848,1.43e-06,90423.0,90422.0,0.46876365]
[1765559707228,1.43e-06,90423.0,90422.0,0.39151926]
[1765559707858,1.43e-06,90423.0,90422.0,0.38551926]
[1765559708058,1.43e-06,90423.0,90422.0,0.39151926]
[1765559708285,1.43e-06,90423.0,90422.0,0.39651926]
[1765559708506,1.43e-06,90423.0,90422.0,0.39151926]
[1765559708869,1.43e-06,90423.0,90422.0,0.39751926]
[1765559709061,1.43e-06,90423.0,90422.0,0.41511926]
[1765559709262,1.43e-06,90423.0,90422.0,0.40311926]
[1765559709684,1.43e-06,90423.0,90422.0,0.40911926]
[1765559710093,1.43e-06,90423.0,90422.0,0.40311926]
[1765559710469,1.43e-06,90423.0,90422.0,0.39051926]
[1765559710657,1.43e-06,90423.0,90422.0,0.41311926]
[1765559710857,1.43e-06,90423.0,90422.0,0.11741926]
[1765559711098,1.43e-06,90423.0,90422.0,0.11830436]
[1765559711319,1.43e-06,90423.0,90422.0,0.12430436]
[1765559711490,1.43e-06,90423.0,90422.0,0.42100436]
[1765559711692,1.43e-06,90423.0,90422.0,0.40911926]
[1765559711917,1.43e-06,90423.0,90422.0,0.42471926]
[1765559712574,1.43e-06,90423.0,90422.0,0.41871926]
[1765559713060,1.43e-06,90423.0,90422.0,0.42371926]
[1765559713651,1.43e-06,90423.0,90422.0,0.4513648]
[1765559714461,1.43e-06,90423.0,90422.0,0.4463648]
[1765559715025,1.43e-06,90423.0,90422.0,0.52160919]
[1765559715225,1.43e-06,90423.0,90422.0,0.4423648]
[1765559715354,1.43e-06,90423.0,90422.0,0.4483648]
[1765559715907,0.2907,90487.0,90422.0,0.4553648]
[1765559716134,0.02361,90490.0,90447.0,0.60664323]
[1765559716444,0.2320756,90488.0,90447.0,0.62424323]